Cogmind - Beta 13 @@@ ROGUE MODE // 2024.04.04 @ 20:01:01 Player: TechnicalFowl Result: Destroyed by G-47 Trooper with Particle Gun Performance ------------- Evolutions (2) 1000 Regions Visited (3) 600 Robots Destroyed (32) 160 Value Destroyed (843) 843 Prototype IDs (3) 60 Alien Tech Used (0) 0 Bonus (0) 0 TOTAL SCORE: 2663 Bonus ------- None Cogmind --------- Core Integrity 0/550 Matter 300/300 Energy 11/100 System Corruption 2% Temperature Cool (9) Movement Core (50) Location -8/Materials Parts ------- > --- POWER (1) -------- (None) > --- PROPULSION (2) --- (None) > --- UTILITY (4) ------ Improved Heat Sink Advanced Targeting Computer > --- WEAPON (4) ------- Backup Laser III > --- INVENTORY (5) ---- Signal Interpreter Seismic Detector Advanced ECM Suite Light Armor Plating Improved Datajack Peak State ------------ > --- POWER ------------ Light Ion Engine > --- PROPULSION ------- Wheel Compact Wheel > --- UTILITY ---------- Heat Sink Small Storage Unit Improved Sensor Array Advanced Targeting Computer > --- WEAPON ----------- Lightning Gun Lightning Gun Medium Laser Flail > --- INVENTORY -------- Wheel Disposable Heat Sink Signal Interpreter Seismic Detector Seismic Detector Kinecellerator Advanced ECM Suite Improved Light Armor Plating [Rating: 23] Favorites ----------- Power Light Ion Engine Engine Light Ion Engine Propulsion Compact Wheel Leg Aluminum Leg Wheel Compact Wheel Utility Small Storage Unit Device Seismic Detector Storage Small Storage Unit Processor Advanced Targeting Computer Protection Improved Light Armor Plating Weapon Assault Rifle Energy Gun EM Pulse Gun Energy Cannon Beam Cannon Ballistic Gun Assault Rifle Special Weapon Mining Laser Impact Weapon Flail Slashing Weapon Katana Build | -11 -10 -9 -8 ------- Run | Yrd Mat Mat Mat Slots Evolved 4 | . . 2 2 Power . | . . . . Propulsion . | . . . . Utility 2 | . . 1 1 Weapon 2 | . . 1 1 Parts Attached 40 | 4 7 6 23 Power 3 | 1 1 . 1 Engine 3 | 1 1 . 1 Core . | . . . . Reactor . | . . . . Propulsion 6 | 2 1 . 3 Treads . | . . . . Leg 1 | . . . 1 Wheel 5 | 2 1 . 2 Hover . | . . . . Flight . | . . . . Utility 11 | 1 1 2 7 Device 7 | . 1 1 5 Storage 1 | 1 . . . Processor 2 | . . 1 1 Hackware . | . . . . Protection 1 | . . . 1 Artifact . | . . . . Weapon 20 | . 4 4 12 Energy Gun 9 | . 2 1 6 Energy Cannon 1 | . 1 . . Ballistic Gun 5 | . 1 1 3 Ballistic Cannon . | . . . . Launcher . | . . . . Special Weapon 2 | . . 2 . Impact Weapon 2 | . . . 2 Slashing Weapon 1 | . . . 1 Piercing Weapon . | . . . . Special Melee Weapon . | . . . . Unidentified Prototypes . | . . . . Parts Lost 24 | . 2 2 20 Power 2 | . . . 2 Propulsion 5 | . 1 . 4 Utility 6 | . . 1 5 Weapon 11 | . 1 1 9 Highest Loss Streak 9 | . 2 2 9 To Critical Strikes . | . . . . Average Slot Usage (%) 87 | . 98 97 73 Engine 9 | . 14 11 4 Wheel 18 | . 27 22 9 Device 12 | . 13 14 11 Storage 11 | . 14 11 8 Processor 5 | . . 7 9 Protection 1 | . . . 3 Energy Gun 10 | . 10 11 9 Energy Cannon 4 | . 3 11 2 Ballistic Gun 7 | . 14 2 4 Special Weapon 1 | . . 6 . Impact Weapon 2 | . . . 6 Naked Turns . | . . . . Heaviest Build 23 | 10 16 18 23 Greatest Support 26 | 26 26 26 26 Greatest Overweight (x) 5 | . . . 5 Average Overweight (x) . | . . . . Largest Inventory Capacity 8 | 8 8 8 8 Average Capacity 7 | 7 8 8 7 Most Carried 8 | 5 8 8 8 Average Carried 6 | 3 5 6 7 Final Capacity 8 | 8 8 8 5 Final Carried 8 | 4 8 6 5 Class Distribution -------------------- 71% | Mutant 25% | Gunner 3% | Skirmisher Dominant Class ---------------- Mutant | -10/Materials Gunner | -9/Materials Mutant | -8/Materials Resources | -11 -10 -9 -8 ----------- Run | Yrd Mat Mat Mat Matter Collected 841 | 231 336 40 234 Remotely . | . . . . Salvage Created 1134 | . 468 40 626 Parts 39 | . 20 4 15 Haulers Intercepted . | . . . . Recyclers Shooed . | . . . . Parts Field Recycled . | . . . . Retrieved Matter . | . . . . Parts Self-Destructed . | . . . . Prevented . | . . . . Kills | -11 -10 -9 -8 ------- Run | Yrd Mat Mat Mat Combat Hostiles Destroyed 24 | . 9 3 12 Melee 3 | . . . 3 Guns 11 | . 6 1 4 Cannons 4 | . 2 2 . AOE 1 | . 1 . . Classes Destroyed 8 | . 6 . 2 Worker 2 | . 1 . 1 Builder 2 | . 1 . 1 Recycler 2 | . 1 . 1 Watcher 2 | . 2 . . Swarmer 8 | . 3 3 2 Grunt 11 | . 6 . 5 Sentry 3 | . . . 3 Hunter 2 | . . . 2 Best Kill Streak 6 | . 6 3 6 Combat Bots Only 6 | . 4 3 6 Max Kills in Single Turn 1 | . 1 1 1 Gunslinging . | . . . . Exploded 1 | . 1 . . Melee 1 | . . . 1 Uniques/NPCs Destroyed . | . . . . Combat | -11 -10 -9 -8 -------- Run | Yrd Mat Mat Mat Hostile Shots Fired 249 | . 68 20 161 Missed 68 | . 24 7 37 Damage Taken 2394 | . 399 101 1894 Core 666 | . 105 . 561 Absorbed by Shields . | . . . . Core Remaining (%) 86 | 100 58 100 . Volleys Fired 70 | . 39 12 19 Largest 3 | . 2 3 3 Hottest 160 | . 80 145 160 Shots Fired 126 | . 78 19 29 Gun 101 | . 70 7 24 Cannon 14 | . 8 6 . Launcher . | . . . . Special 11 | . . 6 5 Kinetic 46 | . 39 1 6 Thermal 47 | . 8 18 21 Explosive . | . . . . Electromagnetic 33 | . 31 . 2 Robot Hit Streak 6 | . 6 3 4 Robot Miss Streak 3 | . 3 2 3 Penetration Max . | . . . . Secondary Targets . | . . . . Shots Hit Robots 101 | . 48 6 47 Core Hits 34 | . 21 3 10 Critical Kills 1 | . . . 1 Critical Parts Destroyed 8 | . . . 8 Critical Strikes 9 | . . . 9 Smash 9 | . . . 9 Melee Attacks 40 | . . . 40 Impact 40 | . . . 40 Slashing . | . . . . Piercing . | . . . . Sneak Attacks 5 | . . . 5 Combat Hostiles . | . . . . Follow-up Attacks . | . . . . Damage Inflicted 2388 | . 767 99 1522 Guns 890 | . 607 30 253 Cannons 155 | . 86 69 . Explosions 74 | . 74 . . Melee 1269 | . . . 1269 Ramming . | . . . . Kinetic 360 | . 335 . 25 Thermal 444 | . 160 99 185 Explosive . | . . . . Electromagnetic 315 | . 272 . 43 Impact 1269 | . . . 1269 Slashing . | . . . . Piercing . | . . . . Highest Corruption 2 | . . . 2 Average Corruption 2 | . . . 2 Corruption Purged . | . . . . Corruption Blocked . | . . . . Effects 7 | . . . 7 Message Errors 3 | . . . 3 Heat Flow Errors 1 | . . . 1 Energy Discharges 1 | . . . 1 Parts Rejected 1 | . . . 1 Weapon Failures 1 | . . . 1 Overload Shots . | . . . . Overflow Damage 492 | . 4 . 488 Projectiles 11 | . . . 11 Explosions 4 | . 4 . . Melee 477 | . . . 477 Knockbacks 9 | . . . 9 Impact 8 | . . . 8 Kinetic . | . . . . Secondary 1 | . . . 1 Self-Inflicted Damage . | . . . . Shots . | . . . . Rammed . | . . . . Targets Rammed . | . . . . Kicked . | . . . . Crushed . | . . . . Highest Temperature 345 | . 156 345 259 Average Temperature 74 | . 41 107 107 Received Heat Transfer 624 | . 102 . 522 Effects 1 | . . 1 . Energy Bleed 1 | . . 1 . Siege Activations . | . . . . Robots Corrupted 1 | . . . 1 Combat Hostiles 1 | . . . 1 Parts Fried 7 | . . . 7 Impact Corruptions 21 | . . . 21 Robots Melted . | . . . . Combat Hostiles . | . . . . Parts Melted 2 | . 1 . 1 Heat Transferred 1075 | . 335 222 518 Parts Sabotaged . | . . . . Parts Stolen . | . . . . Parts Stripped . | . . . . Power Chain Reactions 1 | . 1 . . Alert | -11 -10 -9 -8 ------- Run | Yrd Mat Mat Mat Peak Influence 199 | . 199 133 145 Initial 55 | . . 47 55 Average 65 | . 61 91 61 Maximum Alert Level . | . . . . Low Security (%) 100 | 100 100 100 100 Level 1 . | . . . . Level 2 . | . . . . Level 3 . | . . . . Level 4 . | . . . . Level 5 . | . . . . High Security . | . . . . Max Security . | . . . . Squads Dispatched 5 | . 1 . 4 Investigation 2 | . . . 2 Extermination . | . . . . Reinforcement 2 | . 1 . 1 Assault . | . . . . Garrison 1 | . . . 1 Intercept . | . . . . Searches Triggered . | . . . . Construction Impeded 1 | . . . 1 Haulers Reinforced . | . . . . Active Scanning Responses . | . . . . Cargo Convoy Interrupts . | . . . . Stealth | -11 -10 -9 -8 --------- Run | Yrd Mat Mat Mat Distress Signals 1 | . 1 . . Communications Jammed . | . . . . Distress Signals . | . . . . Times Spotted 39 | . 13 5 21 Peak Tracking Total 6 | . 5 3 6 Tactical Retreats 3 | . 1 . 2 Traps | -11 -10 -9 -8 ------- Run | Yrd Mat Mat Mat Traps Triggered 1 | . . . 1 Indirectly . | . . . . Trap Hack Attempts . | . . . . Triggered . | . . . . Disarmed . | . . . . Reprogrammed . | . . . . Reused . | . . . . Traps Extracted . | . . . . Installed . | . . . . Triggered . | . . . . Machines | -11 -10 -9 -8 ---------- Run | Yrd Mat Mat Mat Machines Disabled 1 | . 1 . . Max in Single Turn 1 | . 1 . . Machines Repaired . | . . . . Machines Dismantled . | . . . . Machines Sabotaged . | . . . . Overloaded Fab Kills . | . . . . Hacking | -11 -10 -9 -8 --------- Run | Yrd Mat Mat Mat Machines Accessed 5 | . 2 1 2 Terminals 4 | . 2 1 1 Fabricators . | . . . . Repair Stations . | . . . . Recycling Units 1 | . . . 1 Scanalyzers . | . . . . Garrison Access . | . . . . Total Hacks 13 | . 5 3 5 Successful 8 | . 4 1 3 Failed 5 | . 1 2 2 Catastrophic . | . . . . Database Lockouts . | . . . . Manual . | . . . . Terminals 9 | . 5 3 1 Fabricators . | . . . . Repair Stations . | . . . . Recycling Units 4 | . . . 4 Scanalyzers . | . . . . Garrison Access . | . . . . Terminal Hacks 6 | . 4 1 1 Prototype ID Bank 1 | . 1 . . Locate Traps 2 | . 2 . . Transport Status 1 | . . . 1 Registered Prototypes 1 | . 1 . . Zone Layout 1 | . . 1 . Fabricator Hacks . | . . . . Repair Station Hacks . | . . . . Recycling Unit Hacks 2 | . . . 2 Report Inventory 1 | . . . 1 Retrieve Components 1 | . . . 1 Scanalyzer . | . . . . Garrison Access Hacks . | . . . . Unauthorized Hacks . | . . . . Terminals . | . . . . Fabricators . | . . . . Repair Stations . | . . . . Recycling Units . | . . . . Scanalyzers . | . . . . Garrison Access . | . . . . Data Cores Recovered . | . . . . Used . | . . . . Hacking Detections 3 | . 2 1 . Full Trace Events 1 | . 1 . . Feedback Events . | . . . . Feedback Blocked . | . . . . Robot Schematics Acquired . | . . . . Robots Built . | . . . . Authchips . | . . . . Time . | . . . . Total Robot Build Rating . | . . . . Part Schematics Acquired . | . . . . Parts Built . | . . . . Authchips . | . . . . Time . | . . . . Total Part Build Rating . | . . . . Parts Repaired . | . . . . Time . | . . . . Parts Recycled . | . . . . Recycled Matter . | . . . . Retrieved Matter . | . . . . Retrieved Components 3 | . . . 3 Parts Scanalyzed . | . . . . Part Schematics Acquired . | . . . . Parts Damaged . | . . . . Bothacking | -11 -10 -9 -8 ------------ Run | Yrd Mat Mat Mat Used RIF Installer . | . . . . Robots Hacked . | . . . . Non-combat . | . . . . Combat . | . . . . Robot Hacks Applied . | . . . . Relay Couplers Released . | . . . . Fabnet Peak Effective % . | . . . . Robots Rewired . | . . . . Allies Hacked . | . . . . Hacks Repelled . | . . . . Allies | -11 -10 -9 -8 -------- Run | Yrd Mat Mat Mat Total Allies . | . . . . Largest Group . | . . . . Highest-Rated Group . | . . . . Highest-Rated Ally . | . . . . Total Orders . | . . . . Ally Attacks . | . . . . Total Damage . | . . . . Kills . | . . . . Allies Corrupted . | . . . . Allies Melted . | . . . . Intel | -11 -10 -9 -8 ------- Run | Yrd Mat Mat Mat Robot Analysis Total . | . . . . Derelict Logs Recovered . | . . . . Drone Launches . | . . . . Drone Recoveries . | . . . . Exploration | -11 -10 -9 -8 ------------- Run | Yrd Mat Mat Mat Turns Passed 1515 | 52 541 272 650 Spaces Moved 766 | 49 202 240 275 Core 50 | 10 . . 40 Treads . | . . . . Legs 29 | . . . 29 Wheels 687 | 39 202 240 206 Hover . | . . . . Flight . | . . . . Fastest Speed 50 | 50 90 90 90 Average Speed 101 | 81 90 90 124 Slowest Speed 300 | 90 90 90 300 Overloaded Moves . | . . . . Propulsion Burnouts . | . . . . Robots Hopped . | . . . . Cave-ins Triggered 1 | . . . 1 Exploration Rate (%) 20 | 3 39 19 22 Regions Visited 3 Branch Regions . Pre-discovered Areas . | . . . . Known Exits Taken . | . . . . Unknown Exits Taken 3 | 1 1 1 . Scrap Searched . | . . . . Spaces Dug 11 | . . 6 5 Terrain Destroyed 13 | . 2 6 5 Melee . | . . . . Projectile 11 | . . 6 5 AOE 2 | . 2 . . Terrain Rammed . | . . . . Walls Destroyed . | . . . . Machines Disabled . | . . . . Actions | -11 -10 -9 -8 --------- Run | Yrd Mat Mat Mat Total 1294 | 60 483 265 486 Wait 326 | . 221 4 101 Move 763 | 48 201 239 275 Hop . | . . . . Pick Up 43 | 8 12 3 20 Fast Attach 4 | . . . 4 Attach 29 | 4 5 4 16 Detach . | . . . . Swap 7 | . 2 2 3 Drop 12 | . 3 1 8 Fire 70 | . 39 12 19 Melee 40 | . . . 40 Ram . | . . . . Kick . | . . . . Crush . | . . . . Escape Stasis . | . . . . Rewire . | . . . . Trap . | . . . . Miscellaneous . | . . . . Route ------- -11/Scrapyard -10/Materials -9/Materials -8/Materials History --------- Turn | Location | Event 7 | -11/Scrapyard | Discovered new exit (range 16) 53 | -11/Scrapyard | Entered Materials 312 | -10/Materials | Build established: Mutant 585 | -10/Materials | Discovered new exit (range 9) 594 | -10/Materials | Entered another Materials area 594 | -9/Materials | Evolved 2 slots: Utility x1, Weapon x1 861 | -9/Materials | Discovered new exit (range 5) 866 | -9/Materials | Entered another Materials area 866 | -8/Materials | Evolved 2 slots: Utility x1, Weapon x1 939 | -8/Materials | Crushed by falling debris 1194 | -8/Materials | Lost 5 parts (1n1u3w) 1265 | -8/Materials | Lost 3 parts (2n1u) 1449 | -8/Materials | Core integrity fell below 50% 1491 | -8/Materials | Garrison activated, responded to threat 1508 | -8/Materials | Core integrity fell below 20% 1516 | -8/Materials | Destroyed by G-47 Trooper with Particle Gun Last Messages --------------- R-06 Scavenger collects Corrupted Lgt. Nuclear Core. Acquired Backup Laser III. K-01 Serf collects debris. Acquired Backup Laser III. K-01 Serf collects debris. Y-45 Defender calls for garrison reinforcements. ALERT: Activating Garrison Access M001. Heat Sink melted. Y-45 Defender destroyed. K-01 Serf collects debris. Seismic Detector destroyed. S-10 Pest destroyed. System corrupted: Backup Laser III failed to cycle. Sml. Storage Unit destroyed. Acquired 10 matter. Backup Laser III destroyed. S-10 Pest destroyed. G-47 Trooper destroyed. Map ----- +----------------------------------------------------+ | ?????????????????????????????????????????????????? | | ?????????????????????????????????????????????????? | | ?????????????????????????????????????????????????? | | ?????????????????????????????????????????????????? | | ?????????????????????????????????????????????????? | | ?????????????????????????????????????????????????? | | ?????????????????????????????????????????????????? | | ?????????????????????????????????????????????????? | | ?????????????????????????????????????????????????? | | ?????????????????????????????????????????????????? | | ?????????????????????????????????????????????????? | | ?????????????????????????????????????????????????? | | ?????????????????????????????????????????????? #? | | ?????????????????????????????????????????????? | | ?????????????????????????????????????????????? | | ????????????????????#######??????????????????? | | ????????????????##### ###???????????????? | | ????????????????? ????????????????#" | | ?????????????????? [ ????????????????#T | | ??????????????????? ?????????????????#" ? | | ????????????????????# ??????????????????+ ? | | ?????????????????????# #??????????????????# ? | | ??????????????#??????# #??????????????????# #? | | ??????????????# # % #?????#######??????# #? | | ??????????????# +%==####### #??????# #? | | ??????????????# #%[%@[= #??????# ## | | ??????????????# ?#=*=!!! T #??????# # | | ??????????????# = ??#!% [! % t #??????# # | | ??????????????###????#%=%####### ##??##?# # | | ?????????????????????#*s[#?????###a### ## ### + | | ?????????????????????# g #??????##+########## # | | ???????????????????? #??????# % # #% | | ???????????????????# # g #??????# % # ## | | ???????????????????### #??????# # #? | | ?????????????????????# #??????# " + #? | | ?????????????????????# #??????# " % # #? | | ?????????????????????# ???????# " % % # #? | | ?????????????????????# ???????# # #? | | ?????????????????????+ ???????### ####+#### #? | | ?????????????????????# ?????????#### # # ## ## | | ?????????????????????# ????????????###+#### # | | ?????????????????????????????????????# % # # | | ?????????????????????????????????????# """ # # | | ?????????????????????????????????????# """ / + | | ?????????????????????????????????????# """ # # | | ?????????????????????????????????????# # # | | ?????????????????????????????????????# # ## | | ?????????????????????????????????????######## # | | ????????????????????????????????????????????# # | | ????????????????????????????????????????????# # | +----------------------------------------------------+ Best States ------------- Heat Dissipation 45 Energy Generation 14 Energy Capacity 250 Matter Stores 300 Matter Capacity 300 Sight Range 16 Robot Scan Range 15 Terrain Scan Density 10 Armor Coverage 150 Evasion (%) 42 Targeting Accuracy 8 Item Schematics ----------------- None Robot Schematics ------------------ None Fabricated ------------ Nothing Alien Tech Used ----------------- None Achievements -------------- None Challenges ------------ None Game ------ Seed BiomechanicalStormScythe Manual? 0 Play Time 00:21:45 Cumulative 3.8 hours Start 2024.04.04 @ 19:40:21 End 2024.04.04 @ 20:01:01 Sessions 1 Manual Loads 0 Difficulty Rogue Special Mode None Game No. 7 Rogue 5 Adventurer 2 Explorer 0 Win Type - Total 0 Types 0/0/0/0/0/0/0/0/0 Lore% 6 Gallery% 11 Achievement% 12 Wizard Run 0 Options --------- Layout 1 ASCII 0 Keyboard 0 Movement Arrows Keybinds 0 Fullscreen 1 Font 24/Smallcaps Map View 50x35 Zoom Use 0% Tactical HUD 0 Map Filters NONE Filters NONE Steam 1 RUN: 32a2ea03-c558-4608-9dfa-4480a713fdda